[Event "2nd Goa GM Open 2019"]
[Site "Goa"]
[Date "2019.06.19"]
[Round "2.15"]
[White "Tukhaev, Adam"]
[Black "Saravana, Krishnan P."]
[Result "1/2-1/2"]
[ECO "C03"]
[WhiteElo "2527"]
[BlackElo "2290"]
[Annotator "ChessBase"]
[PlyCount "84"]
[EventDate "2019.06.17"]
[EventType "swiss"]
[EventCountry "IND"]
[SourceTitle "playchess.com"]
[Source "ChessBase"]
[SourceQuality "1"]
[TimeControl "5400+30"]

1. e4 {[%emt 0:00:00]} e6 {[%emt 0:00:00]} 2. d4 {[%emt 0:00:00]} d5 {[%emt 0:00:00]} 3. Nd2 {[%emt 0:00:57]} h6 {[%emt 0:00:09]} 4. Ngf3 {[%emt 0:00:59]} Nf6 {[%emt 0:00:12]} 5. e5 {[%emt 0:01:09]} Nfd7 {[%emt 0:00:05]} 6. Bd3 {[%emt 0:01:05]} c5 {[%emt 0:00:13]} 7. c4 {[%emt 0:02:05]} Nb6 {[%emt 0:12:53]} 8. O-O {[%emt 0:17:52]} Nc6 {[%emt 0:01:31]} 9. cxd5 {[%emt 0:11:41]} Nxd5 {[%emt 0:01:30]} 10. Ne4 {[%emt 0:12:46]} cxd4 {[%emt 0:03:32]} 11. a3 {[%emt 0:01:27]} Qc7 {[%emt 0:04:35]} 12. Re1 {[%emt 0:09:22]} Bd7 {[%emt 0:06:10]} 13. Bd2 {[%emt 0:06:15]} Nxe5 {[%emt 0:09:21]} 14. Rc1 {[%emt 0:00:36]} Nxf3+ {[%emt 0:06:52]} 15. Qxf3 {[%emt 0:03:46]} Bc6 {[%emt 0:00:28]} 16. b4 {[%emt 0:01:49]} Qd7 {[%emt 0:07:01]} 17. Qg3 {[%emt 0:02:34]} a6 {[%emt 0:16:16]} 18. Nc5 {[%emt 0:10:30]} Bxc5 {[%emt 0:04:55]} 19. Rxc5 {[%emt 0:00:03]} Kf8 {[%emt 0:00:26]} 20. h4 {[%emt 0:00:13]} Rd8 {[%emt 0:01:24]} 21. h5 {[%emt 0:00:12]} Qd6 {[%emt 0:01:13]} 22. Qh4 {[%emt 0:00:38]} Qe7 {[%emt 0:02:11]} 23. Qg3 {[%emt 0:01:48]} Qd6 {[%emt 0:00:07]} 24. Qh4 {[%emt 0:01:44]} Qe7 {[%emt 0:00:06]} 25. Qg4 {[%emt 0:01:54]} Qd6 {[%emt 0:07:01]} 26. Rec1 {[%emt 0:05:56]} e5 {[%emt 0:03:46]} 27. Bxa6 {[%emt 0:03:34]} Nf6 {[%emt 0:01:16]} 28. Qe2 {[%emt 0:00:38]} Bxg2 {[%emt 0:01:48]} 29. Kxg2 {[%emt 0:00:19]} bxa6 {[%emt 0:02:35]} 30. Qxe5 {[%emt 0:00:36]} Qd7 {[%emt 0:00:41]} 31. Qf5 {[%emt 0:01:28]} Qxf5 {[%emt 0:02:35]} 32. Rxf5 {[%emt 0:00:03]} Kg8 {[%emt 0:00:21]} 33. Rc7 {[%emt 0:00:51]} Kh7 {[%emt 0:00:14]} 34. Rxf6 {[%emt 0:01:22]} gxf6 {[%emt 0:00:05]} 35. Rxf7+ {[%emt 0:00:02]} Kg8 {[%emt 0:00:07]} 36. Rxf6 {[%emt 0:00:01]} Kg7 {[%emt 0:03:00]} 37. Rxa6 {[%emt 0:00:11]} Rhe8 {[%emt 0:00:08]} 38. Rxh6 {[%emt 0:01:58]} Re2 {[%emt 0:00:17]} 39. Rg6+ {[%emt 0:00:02]} Kh7 {[%emt 0:00:21]} 40. Rh6+ {[%emt 0:00:02]} Kg7 {[%emt 0:00:05]} 41. Rg6+ {[%emt 0:00:02]} Kh7 {[%emt 0:00:07]} 42. Rh6+ {[%emt 0:00:02]} Kg7 {[%emt 0:00:12]} 1/2-1/2

[Event "2nd Goa GM Open 2019"]
[Site "Goa"]
[Date "2019.06.19"]
[Round "2.20"]
[White "Venkatesh, M.R."]
[Black "Bhambure, Shantanu"]
[Result "0-1"]
[ECO "B23"]
[WhiteElo "2490"]
[BlackElo "2248"]
[Annotator "ChessBase"]
[PlyCount "98"]
[EventDate "2019.06.17"]
[EventType "swiss"]
[EventCountry "IND"]
[SourceTitle "playchess.com"]
[Source "ChessBase"]
[SourceQuality "1"]
[TimeControl "5400+30"]

1. e4 {[%emt 0:00:00]} c5 {[%emt 0:00:00]} 2. Nc3 {[%emt 0:00:00]} a6 {[%emt 0:00:00]} 3. g3 {[%emt 0:00:04]} b5 {[%emt 0:00:00]} 4. Bg2 {[%emt 0:00:06]} Bb7 {[%emt 0:00:00]} 5. d3 {[%emt 0:02:01]} e6 {[%emt 0:01:12]} 6. Nh3 {[%emt 0:00:06]} Nf6 {[%emt 0:01:16]} 7. O-O {[%emt 0:00:17]} d6 {[%emt 0:04:19]} 8. f4 {[%emt 0:01:11]} b4 {[%emt 0:02:15]} 9. Ne2 {[%emt 0:01:34]} Be7 {[%emt 0:02:03]} 10. Nf2 {[%emt 0:02:12]} Nc6 {[%emt 0:03:46]} 11. g4 {[%emt 0:01:47]} O-O {[%emt 0:06:56]} 12. Ng3 {[%emt 0:08:06]} d5 {[%emt 0:05:52]} 13. g5 {[%emt 0:24:44]} Ne8 {[%emt 0:00:37]} 14. exd5 {[%emt 0:01:29]} exd5 {[%emt 0:00:09]} 15. Qg4 {[%emt 0:00:10]} Nd4 {[%emt 0:26:06]} 16. c3 {[%emt 0:14:51]} f5 {[%emt 0:04:47]} 17. Qh3 {[%emt 0:00:15]} Nc2 {[%emt 0:02:27]} 18. Rb1 {[%emt 0:00:06]} Nd6 {[%emt 0:04:48]} 19. Qh5 {[%emt 0:01:29]} d4 {[%emt 0:07:05]} 20. Bxb7 {[%emt 0:01:19]} Nxb7 {[%emt 0:00:04]} 21. Qe2 {[%emt 0:00:07]} Ne3 {[%emt 0:00:41]} 22. Bxe3 {[%emt 0:00:07]} dxe3 {[%emt 0:00:04]} 23. Qxe3 {[%emt 0:00:07]} Qd7 {[%emt 0:02:21]} 24. Qf3 {[%emt 0:05:11]} Rae8 {[%emt 0:01:55]} 25. Rfd1 {[%emt 0:01:48]} a5 {[%emt 0:03:10]} 26. Nf1 {[%emt 0:04:00]} Nd8 {[%emt 0:02:40]} 27. d4 {[%emt 0:11:34]} Qa7 {[%emt 0:03:45]} 28. Ne3 {[%emt 0:03:34]} cxd4 {[%emt 0:00:55]} 29. cxd4 {[%emt 0:00:07]} Ne6 {[%emt 0:02:34]} 30. Nc4 {[%emt 0:12:22]} Kh8 {[%emt 0:03:02]} 31. d5 {[%emt 0:01:50]} Nd4 {[%emt 0:01:30]} 32. Qd3 {[%emt 0:00:02]} Bc5 {[%emt 0:00:40]} 33. Ne5 {[%emt 0:00:08]} Rd8 {[%emt 0:06:01]} 34. Qc4 {[%emt 0:00:25]} Rc8 {[%emt 0:00:22]} 35. Rbc1 {[%emt 0:00:23]} g6 {[%emt 0:01:50]} 36. Kf1 {[%emt 0:01:13]} Bb6 {[%emt 0:01:05]} 37. Qd3 {[%emt 0:01:32]} Rcd8 {[%emt 0:00:55]} 38. Qh3 {[%emt 0:01:09]} Kg8 {[%emt 0:00:24]} 39. Qg2 {[%emt 0:00:16]} Rfe8 {[%emt 0:00:55]} 40. Nfd3 {[%emt 0:00:40]} Qa6 {[%emt 0:00:29]} 41. Rc4 {[%emt 0:01:08]} Qb5 {[%emt 0:00:25]} 42. d6 {[%emt 0:00:26]} Rxd6 {[%emt 0:00:43]} 43. Rdc1 {[%emt 0:00:25]} Red8 {[%emt 0:00:43]} 44. Rc8 {[%emt 0:00:52]} Qd5 {[%emt 0:00:34]} 45. Qxd5+ {[%emt 0:00:41]} Rxd5 {[%emt 0:00:01]} 46. Rxd8+ {[%emt 0:00:13]} Rxd8 {[%emt 0:00:11]} 47. Nc4 {[%emt 0:00:27]} Bc7 {[%emt 0:00:50]} 48. Kf2 {[%emt 0:00:43]} Ne6 {[%emt 0:00:46]} 49. Ke3 {[%emt 0:00:08]} Rd4 {[%emt 0:00:18] Kxd4} 0-1

[Event "2nd Goa GM Open 2019"]
[Site "Goa"]
[Date "2019.06.19"]
[Round "2.22"]
[White "Rahman, Ziaur"]
[Black "Shelke Sankarsha"]
[Result "1-0"]
[ECO "A06"]
[WhiteElo "2481"]
[BlackElo "2239"]
[Annotator "ChessBase"]
[PlyCount "145"]
[EventDate "2019.06.17"]
[EventType "swiss"]
[EventCountry "IND"]
[SourceTitle "playchess.com"]
[Source "ChessBase"]
[SourceQuality "1"]
[TimeControl "5400+30"]

1. Nf3 {[%emt 0:01:50]} d5 {[%emt 0:00:03]} 2. g3 {[%emt 0:00:11]} c6 {[%emt 0:01:15]} 3. Bg2 {[%emt 0:00:05]} Bg4 {[%emt 0:01:41]} 4. c4 {[%emt 0:01:08]} e6 {[%emt 0:01:32]} 5. Qb3 {[%emt 0:00:45]} Qb6 {[%emt 0:07:39]} 6. Qc2 {[%emt 0:02:00]} Nd7 {[%emt 0:03:55]} 7. d3 {[%emt 0:03:12]} Ngf6 {[%emt 0:04:20]} 8. Nc3 {[%emt 0:05:03]} Bxf3 {[%emt 0:10:33]} 9. exf3 {[%emt 0:00:44]} Bd6 {[%emt 0:08:00]} 10. O-O {[%emt 0:00:28]} O-O {[%emt 0:00:03]} 11. Rb1 {[%emt 0:03:21]} a5 {[%emt 0:05:10]} 12. b3 {[%emt 0:02:39]} e5 {[%emt 0:05:02]} 13. Bh3 Rad8 {[%emt 0:05:02]} 14. a3 {[%emt 0:05:02]} h6 {[%emt 0:04:45]} 15. b4 {[%emt 0:04:17]} axb4 {[%emt 0:00:28]} 16. axb4 {[%emt 0:00:05]} d4 {[%emt 0:08:41]} 17. Na2 {[%emt 0:06:07]} Qa7 {[%emt 0:03:11]} 18. Bd2 {[%emt 0:01:31]} Ra8 {[%emt 0:03:38]} 19. Nc1 {[%emt 0:03:57]} b6 {[%emt 0:05:19]} 20. Bg2 {[%emt 0:01:22]} Qc7 {[%emt 0:04:01]} 21. Nb3 {[%emt 0:01:28]} c5 {[%emt 0:02:40]} 22. b5 {[%emt 0:01:22]} Ra3 {[%emt 0:02:45]} 23. Ra1 {[%emt 0:02:45]} Rfa8 {[%emt 0:01:45]} 24. Rxa3 {[%emt 0:00:32]} Rxa3 {[%emt 0:00:04]} 25. Bc1 {[%emt 0:00:09]} Ra7 {[%emt 0:00:42]} 26. Re1 {[%emt 0:00:49]} Nf8 {[%emt 0:01:25]} 27. h4 {[%emt 0:01:27]} Ng6 {[%emt 0:01:20]} 28. Bd2 {[%emt 0:02:06]} Ra3 {[%emt 0:00:54]} 29. Bc1 {[%emt 0:00:50]} Ra7 {[%emt 0:00:12]} 30. Qe2 {[%emt 0:02:59]} Qb8 {[%emt 0:01:48]} 31. Rd1 {[%emt 0:03:42]} Ra4 {[%emt 0:02:11]} 32. Rd2 {[%emt 0:00:47]} Qa7 {[%emt 0:00:59]} 33. Rb2 {[%emt 0:00:33]} Rb4 {[%emt 0:01:06]} 34. Qc2 {[%emt 0:01:46]} Ra4 {[%emt 0:00:27]} 35. Bh3 {[%emt 0:01:16]} Ra3 {[%emt 0:01:09]} 36. Bf1 {[%emt 0:01:21]} Qa4 {[%emt 0:00:53]} 37. Kg2 {[%emt 0:01:27]} Qa8 {[%emt 0:01:08]} 38. Be2 {[%emt 0:00:42]} Qa4 {[%emt 0:00:45]} 39. Bd1 {[%emt 0:00:45]} Qa8 {[%emt 0:00:10]} 40. Kg1 {[%emt 0:00:56]} Kh7 {[%emt 0:00:54]} 41. Qe2 {[%emt 0:00:42]} Kg8 {[%emt 0:00:30]} 42. Rd2 {[%emt 0:01:39]} Ra7 {[%emt 0:00:10]} 43. Rc2 {[%emt 0:00:55]} Kh8 {[%emt 0:01:08]} 44. Nd2 {[%emt 0:01:15]} Ra2 {[%emt 0:00:23]} 45. Ne4 {[%emt 0:04:03]} Rxc2 {[%emt 0:00:02]} 46. Qxc2 {[%emt 0:00:08]} Nxe4 {[%emt 0:01:19]} 47. fxe4 {[%emt 0:00:12]} Qc8 {[%emt 0:00:26]} 48. Qa2 {[%emt 0:01:45]} Qb8 {[%emt 0:00:45]} 49. Bh5 {[%emt 0:00:51]} Kh7 {[%emt 0:00:02]} 50. Kg2 {[%emt 0:00:42]} Qb7 {[%emt 0:00:47]} 51. Qe2 {[%emt 0:01:04]} Qa7 {[%emt 0:00:53]} 52. Qf3 {[%emt 0:00:50]} Qd7 {[%emt 0:00:10]} 53. Bg4 {[%emt 0:01:52]} Qa7 {[%emt 0:01:02]} 54. Qf5 {[%emt 0:00:47]} Kg8 {[%emt 0:00:23]} 55. Qc8+ {[%emt 0:01:14]} Nf8 {[%emt 0:00:08]} 56. Qc6 {[%emt 0:00:29]} Qc7 {[%emt 0:00:22]} 57. Qd5 {[%emt 0:00:27]} Ng6 {[%emt 0:01:03]} 58. Bh5 {[%emt 0:01:17]} Nf8 {[%emt 0:00:04]} 59. Bxf7+ {[%emt 0:01:06]} Kh7 {[%emt 0:01:18]} 60. Bh5 {[%emt 0:00:58]} Qe7 {[%emt 0:00:49]} 61. Bg4 {[%emt 0:01:20]} g6 {[%emt 0:00:16]} 62. h5 {[%emt 0:01:11]} Kg7 {[%emt 0:00:18]} 63. hxg6 {[%emt 0:00:41]} Nxg6 {[%emt 0:00:06]} 64. Bf5 {[%emt 0:00:08]} Nf8 {[%emt 0:01:05]} 65. Qc6 {[%emt 0:00:18]} Qd8 {[%emt 0:00:20]} 66. Bd2 {[%emt 0:01:24]} Qb8 {[%emt 0:00:39]} 67. Kh3 {[%emt 0:01:24]} Qd8 {[%emt 0:00:42]} 68. f4 {[%emt 0:01:01]} exf4 {[%emt 0:00:36]} 69. Bxf4 {[%emt 0:00:27]} Bxf4 {[%emt 0:00:07]} 70. gxf4 {[%emt 0:00:04]} Qb8 {[%emt 0:00:52]} 71. e5 {[%emt 0:00:51]} Qd8 {[%emt 0:00:07]} 72. Kg4 {[%emt 0:01:30]} Nh7 {[%emt 0:00:54]} 73. Qg6+ {[%emt 0:00:18]} 1-0

[Event "2nd Goa GM Open 2019"]
[Site "Goa"]
[Date "2019.06.19"]
[Round "2.23"]
[White "Deshpande, Aniruddha"]
[Black "Kunte, Abhijit"]
[Result "1/2-1/2"]
[ECO "C84"]
[WhiteElo "2242"]
[BlackElo "2478"]
[Annotator "RC"]
[PlyCount "66"]
[EventDate "2019.06.17"]
[EventType "swiss"]
[EventCountry "IND"]
[SourceTitle "playchess.com"]
[Source "ChessBase"]
[SourceQuality "1"]
[TimeControl "5400+30"]

1. e4 {[%emt 0:03:11]} e5 {[%emt 0:01:20]} 2. Nf3 {[%emt 0:00:10]} Nc6 {[%emt 0:00:07]} 3. Bb5 {[%emt 0:00:13]} a6 {[%emt 0:00:16]} 4. Ba4 {[%emt 0:00:12]} Nf6 {[%emt 0:00:08]} 5. O-O {[%emt 0:00:15]} Be7 {[%emt 0:00:06]} 6. d3 {[%emt 0:00:11]} d6 {[%emt 0:00:26]} 7. c3 {[%emt 0:00:11]} O-O {[%emt 0:00:14]} 8. h3 {[%emt 0:00:22]} b5 {[%emt 0:04:01]} 9. Bc2 {[%emt 0:00:18]} Bb7 {[%emt 0:00:06]} 10. Nbd2 {[%emt 0:01:03]} Nb8 {[%emt 0:00:08]} 11. Re1 {[%emt 0:00:21]} Nbd7 {[%emt 0:00:07]} 12. Nf1 {[%emt 0:00:20]} Re8 {[%emt 0:00:09]} 13. Ng3 {[%emt 0:01:33]} Bf8 {[%emt 0:00:31]} 14. b3 {[%emt 0:00:28]} g6 {[%emt 0:00:30]} 15. Bb2 {[%emt 0:00:20]} Bg7 {[%emt 0:00:09]} 16. d4 {[%emt 0:02:33]} c6 {[%emt 0:00:29]} 17. dxe5 {[%emt 0:00:45]} Nxe5 {[%emt 0:01:09]} 18. Nxe5 {[%emt 0:01:28]} dxe5 {[%emt 0:00:07]} 19. Qxd8 {[%emt 0:01:18]} Raxd8 {[%emt 0:00:10]} 20. Rad1 {[%emt 0:00:31]} Bf8 {[%emt 0:00:47]} 21. Bc1 {[%emt 0:00:55]} Be7 {[%emt 0:03:57]} 22. Rxd8 {[%emt 0:00:54]} Rxd8 {[%emt 0:00:08]} 23. Rd1 {[%emt 0:00:52]} Rxd1+ {[%emt 0:01:54]} 24. Bxd1 {[%emt 0:00:12]} h5 {[%emt 0:00:36]} 25. Bg5 {[%emt 0:02:29]} Kf8 {[%emt 0:00:28]} 26. Bc2 {[%emt 0:01:10]} c5 {[%emt 0:01:06]} 27. Kf1 {[%emt 0:01:34]} Nd7 {[%emt 0:01:40]} 28. Bxe7+ {[%emt 0:02:54]} Kxe7 {[%emt 0:00:07]} 29. Ke2 {[%emt 0:01:48]} Nb6 {[%emt 0:01:32]} 30. Ke3 {[%emt 0:00:40]} Bc8 {[%emt 0:00:33]} 31. Ne2 {[%emt 0:00:15]} h4 {[%emt 0:01:32]} 32. Ng1 {[%emt 0:00:34]} g5 {[%emt 0:00:23]} 33. Nf3 {[%emt 0:00:40]} f6 1/2-1/2

[Event "2nd Goa GM Open 2019"]
[Site "Goa"]
[Date "2019.06.19"]
[Round "2.24"]
[White "Srihari L R"]
[Black "Kostenko, Petr"]
[Result "0-1"]
[ECO "A04"]
[WhiteElo "2214"]
[BlackElo "2473"]
[Annotator "ChessBase"]
[PlyCount "148"]
[EventDate "2019.06.17"]
[EventType "swiss"]
[EventCountry "IND"]
[SourceTitle "playchess.com"]
[Source "ChessBase"]
[SourceQuality "1"]
[TimeControl "5400+30"]

1. Nf3 c5 {[%emt 0:00:22]} 2. c4 {[%emt 0:02:01]} g6 {[%emt 0:02:36]} 3. Nc3 {[%emt 0:07:08]} Bg7 {[%emt 0:00:07]} 4. e3 {[%emt 0:01:28]} Nf6 {[%emt 0:00:20]} 5. d4 {[%emt 0:08:55]} cxd4 {[%emt 0:01:18]} 6. exd4 {[%emt 0:08:13]} d5 {[%emt 0:01:04]} 7. Bg5 {[%emt 0:01:42]} Ne4 {[%emt 0:02:25]} 8. Bf4 {[%emt 0:04:41]} Nxc3 {[%emt 0:00:44]} 9. bxc3 {[%emt 0:00:05]} O-O {[%emt 0:00:11]} 10. cxd5 {[%emt 0:03:37]} Qxd5 {[%emt 0:00:11]} 11. Be2 {[%emt 0:04:19]} Nc6 {[%emt 0:03:45]} 12. O-O {[%emt 0:01:32]} b6 {[%emt 0:00:30]} 13. Be3 {[%emt 0:11:10]} Na5 {[%emt 0:04:23]} 14. Nd2 {[%emt 0:15:43]} Bb7 {[%emt 0:00:15]} 15. Bf3 {[%emt 0:00:04]} Qd7 {[%emt 0:00:15]} 16. Bxb7 {[%emt 0:01:30]} Qxb7 {[%emt 0:01:06]} 17. Qa4 {[%emt 0:01:33]} Rac8 {[%emt 0:00:46]} 18. Rac1 {[%emt 0:06:59]} Rfd8 {[%emt 0:00:22]} 19. Rfd1 {[%emt 0:01:07]} Qc7 {[%emt 0:12:34]} 20. g3 {[%emt 0:05:02]} h5 {[%emt 0:01:41]} 21. h4 {[%emt 0:02:00]} Qb7 {[%emt 0:12:26]} 22. Qb5 {[%emt 0:02:01]} Qd7 {[%emt 0:02:49]} 23. Qe2 {[%emt 0:06:49]} Qe6 {[%emt 0:01:07]} 24. Nf1 {[%emt 0:01:46]} Nc4 {[%emt 0:00:54]} 25. Re1 {[%emt 0:01:21]} Re8 {[%emt 0:04:38]} 26. Bg5 {[%emt 0:01:39]} Qd5 {[%emt 0:10:11]} 27. Ne3 {[%emt 0:00:20]} Nxe3 {[%emt 0:00:05]} 28. Bxe3 {[%emt 0:00:28]} Rc4 {[%emt 0:00:16]} 29. Bf4 {[%emt 0:00:44]} e6 {[%emt 0:01:13]} 30. Be5 {[%emt 0:00:28]} Bh6 {[%emt 0:00:17]} 31. Rc2 {[%emt 0:00:30]} Rec8 {[%emt 0:00:13]} 32. Qd3 {[%emt 0:00:32]} Kh7 {[%emt 0:04:30]} 33. Bf6 {[%emt 0:00:29]} Qf5 {[%emt 0:00:20]} 34. Qxf5 {[%emt 0:00:08]} gxf5 {[%emt 0:00:08]} 35. d5 {[%emt 0:00:29]} Kg6 {[%emt 0:00:24]} 36. Be7 {[%emt 0:00:50]} exd5 {[%emt 0:00:13]} 37. Rce2 {[%emt 0:00:35]} Rxc3 {[%emt 0:01:15]} 38. Re5 {[%emt 0:00:29]} Rd3 {[%emt 0:02:15]} 39. Bd6 {[%emt 0:00:30]} Rd8 {[%emt 0:08:32]} 40. Bc7 {[%emt 0:00:23]} Rd7 {[%emt 0:00:11]} 41. Bb8 {[%emt 0:00:37]} Ra3 {[%emt 0:01:12]} 42. Re7 {[%emt 0:00:30]} Rxe7 {[%emt 0:00:46]} 43. Rxe7 {[%emt 0:00:02]} Rxa2 {[%emt 0:01:23]} 44. Bxa7 {[%emt 0:00:01]} Bf8 {[%emt 0:01:29]} 45. Rd7 {[%emt 0:00:48]} Rb2 {[%emt 0:00:33]} 46. Rxd5 {[%emt 0:00:45]} Bc5 {[%emt 0:00:05]} 47. Kf1 {[%emt 0:00:50]} Rxf2+ {[%emt 0:00:27]} 48. Ke1 {[%emt 0:00:22]} Rb2 {[%emt 0:01:07]} 49. Bb8 {[%emt 0:00:18]} Rb4 {[%emt 0:01:18]} 50. Rd8 {[%emt 0:00:40]} Re4+ {[%emt 0:00:46]} 51. Kf1 {[%emt 0:00:12]} Be7 {[%emt 0:00:26]} 52. Rg8+ {[%emt 0:00:37]} Kh7 {[%emt 0:00:57]} 53. Rc8 {[%emt 0:00:18]} Re6 {[%emt 0:01:13]} 54. Ba7 {[%emt 0:01:07]} Bc5 {[%emt 0:00:26]} 55. Bb8 {[%emt 0:00:21]} Kg7 {[%emt 0:03:32]} 56. Rd8 {[%emt 0:00:39]} Be7 {[%emt 0:01:19]} 57. Rd5 {[%emt 0:00:29]} Kf6 {[%emt 0:00:23]} 58. Bf4 {[%emt 0:00:31]} Re4 {[%emt 0:01:47]} 59. Rd7 {[%emt 0:00:10]} Ke6 {[%emt 0:00:45]} 60. Rb7 {[%emt 0:00:15]} Rb4 {[%emt 0:00:22]} 61. Be3 {[%emt 0:00:59]} Bc5 {[%emt 0:01:54]} 62. Bf4 {[%emt 0:00:36]} Rb2 {[%emt 0:01:34]} 63. Rc7 {[%emt 0:00:29]} f6 {[%emt 0:03:19]} 64. Ke1 {[%emt 0:00:31]} Bd4 {[%emt 0:00:48]} 65. Rh7 {[%emt 0:00:32]} b5 {[%emt 0:00:29]} 66. Rxh5 {[%emt 0:00:29]} b4 {[%emt 0:00:20]} 67. Rh7 {[%emt 0:00:27]} Bc3+ {[%emt 0:00:48]} 68. Kd1 {[%emt 0:00:29]} b3 {[%emt 0:00:09]} 69. Kc1 {[%emt 0:00:35]} Rh2 {[%emt 0:00:20]} 70. Kd1 {[%emt 0:00:27]} Rh1+ {[%emt 0:00:10]} 71. Ke2 {[%emt 0:00:09]} b2 {[%emt 0:00:09]} 72. Rb7 {[%emt 0:00:06]} b1=Q {[%emt 0:00:12]} 73. Rxb1 {[%emt 0:00:06]} Rxb1 {[%emt 0:00:03]} 74. Kf3 {[%emt 0:00:07]} Be5 {[%emt 0:00:05]} 0-1

[Event "2nd Goa GM Open 2019"]
[Site "Goa"]
[Date "2019.06.19"]
[Round "2.25"]
[White "Neverov, Valeriy"]
[Black "Deshmukh, Anup"]
[Result "1-0"]
[ECO "E21"]
[WhiteElo "2470"]
[BlackElo "2229"]
[Annotator "ChessBase"]
[PlyCount "137"]
[EventDate "2019.06.17"]
[EventType "swiss"]
[EventCountry "IND"]
[SourceTitle "playchess.com"]
[Source "ChessBase"]
[SourceQuality "1"]
[TimeControl "5400+30"]

1. d4 {[%emt 0:00:00]} Nf6 {[%emt 0:00:00]} 2. Nf3 {[%emt 0:00:00]} e6 {[%emt 0:00:05]} 3. c4 {[%emt 0:01:25]} b6 {[%emt 0:00:08]} 4. Nc3 {[%emt 0:01:14]} Bb4 {[%emt 0:01:12]} 5. e3 {[%emt 0:01:01]} O-O {[%emt 0:01:08]} 6. Bd3 {[%emt 0:00:36]} d5 {[%emt 0:00:33]} 7. cxd5 {[%emt 0:08:04]} exd5 {[%emt 0:00:24]} 8. O-O {[%emt 0:00:22]} Bb7 {[%emt 0:05:54]} 9. Bd2 {[%emt 0:09:53]} Nbd7 {[%emt 0:02:31]} 10. Rc1 {[%emt 0:19:03]} a6 {[%emt 0:03:21]} 11. Ne5 {[%emt 0:00:29]} Nxe5 {[%emt 0:06:41]} 12. dxe5 {[%emt 0:00:02]} Bxc3 {[%emt 0:02:11]} 13. Bxc3 {[%emt 0:00:29]} Ne4 {[%emt 0:00:12]} 14. b4 {[%emt 0:02:53]} Nxc3 {[%emt 0:03:14]} 15. Rxc3 {[%emt 0:00:35]} g6 {[%emt 0:03:04]} 16. Qg4 {[%emt 0:10:51]} Re8 {[%emt 0:01:20]} 17. Qd4 {[%emt 0:06:26]} c6 {[%emt 0:01:56]} 18. a4 {[%emt 0:06:56]} a5 {[%emt 0:06:23]} 19. Rb1 {[%emt 0:02:14]} Re6 {[%emt 0:00:25]} 20. Ra3 {[%emt 0:10:16]} axb4 {[%emt 0:04:49]} 21. Qxb4 {[%emt 0:00:02]} c5 {[%emt 0:00:34]} 22. Qb2 {[%emt 0:00:02]} Bc6 {[%emt 0:06:29]} 23. Bc2 {[%emt 0:06:04]} Ra6 {[%emt 0:03:22]} 24. f4 {[%emt 0:00:04]} Qe8 {[%emt 0:03:40]} 25. Bd1 {[%emt 0:02:20]} Re7 {[%emt 0:11:48]} 26. Be2 {[%emt 0:01:39]} c4 {[%emt 0:04:03]} 27. Qd4 {[%emt 0:00:44]} b5 {[%emt 0:01:42]} 28. Bf3 {[%emt 0:05:00]} Rb7 {[%emt 0:03:55]} 29. Raa1 {[%emt 0:05:13]} b4 {[%emt 0:00:51]} 30. e4 {[%emt 0:00:04]} dxe4 {[%emt 0:13:38]} 31. Qxc4 {[%emt 0:00:13]} exf3 {[%emt 0:05:41]} 32. Qxa6 {[%emt 0:00:03]} b3 {[%emt 0:01:48]} 33. Rd1 {[%emt 0:01:22]} b2 {[%emt 0:01:33]} 34. Rab1 {[%emt 0:00:06]} Be4 {[%emt 0:00:34]} 35. gxf3 {[%emt 0:01:00]} Bxb1 {[%emt 0:01:23]} 36. Qxb7 {[%emt 0:00:11]} Bc2 {[%emt 0:00:06]} 37. Re1 {[%emt 0:00:54]} b1=Q {[%emt 0:00:38]} 38. Rxb1 {[%emt 0:00:03]} Bxb1 {[%emt 0:00:06]} 39. Qxb1 {[%emt 0:00:04]} Qxa4 {[%emt 0:00:16]} 40. Qe4 {[%emt 0:00:08]} Qd1+ {[%emt 0:00:16]} 41. Kg2 {[%emt 0:00:14]} Qd2+ {[%emt 0:00:16]} 42. Kg3 {[%emt 0:00:11]} Qc1 {[%emt 0:00:21]} 43. Qd4 {[%emt 0:00:22]} h6 {[%emt 0:01:40]} 44. h4 {[%emt 0:01:04]} h5 {[%emt 0:00:42]} 45. Kg2 {[%emt 0:00:49]} Qc2+ {[%emt 0:00:10]} 46. Qf2 {[%emt 0:00:29]} Qd3 {[%emt 0:00:46]} 47. Qe1 {[%emt 0:00:39]} Qd5 {[%emt 0:00:39]} 48. Kg3 {[%emt 0:00:30]} Kg7 {[%emt 0:00:12]} 49. f5 {[%emt 0:00:47]} gxf5 {[%emt 0:00:28]} 50. Kf4 {[%emt 0:00:29]} Kf8 {[%emt 0:01:06]} 51. Qb4+ {[%emt 0:00:31]} Kg8 {[%emt 0:00:11]} 52. Qd6 {[%emt 0:00:28]} Qc4+ {[%emt 0:00:20]} 53. Kg5 {[%emt 0:00:34]} Qe2 {[%emt 0:01:04]} 54. Qd8+ {[%emt 0:00:49]} Kh7 {[%emt 0:00:07]} 55. Kf6 {[%emt 0:00:50]} Qc4 {[%emt 0:00:41]} 56. Qd7 {[%emt 0:00:37]} Qxh4+ {[%emt 0:00:39]} 57. Kxf7 {[%emt 0:00:14]} Qg5 {[%emt 0:00:02]} 58. Kf8+ {[%emt 0:00:45]} Kh8 {[%emt 0:00:26]} 59. e6 {[%emt 0:00:29]} h4 {[%emt 0:00:57]} 60. f4 {[%emt 0:00:31]} Qf6+ {[%emt 0:00:30]} 61. Ke8 {[%emt 0:00:20]} h3 {[%emt 0:00:24]} 62. Qf7 {[%emt 0:00:11]} Qc3 {[%emt 0:00:29]} 63. Qh5+ {[%emt 0:00:40]} Kg7 {[%emt 0:00:16]} 64. Qg5+ {[%emt 0:00:10]} Kh8 {[%emt 0:00:38]} 65. Qh6+ {[%emt 0:00:19]} Kg8 {[%emt 0:00:05]} 66. Qf8+ {[%emt 0:00:49]} Kh7 {[%emt 0:00:05]} 67. Qxf5+ {[%emt 0:00:04]} Kg7 {[%emt 0:00:14]} 68. Qg5+ {[%emt 0:00:18]} Kh7 {[%emt 0:00:10]} 69. Kf7 {[%emt 0:01:17]} 1-0